Workbook

Sheet 김범수
B1: 사업책임기술자_김범수 | G1: 공고일 | H1: 2016-08-01
A3: NO | B3: 용역명 | C3: 총사업금액 (백만원) | D3: 착수일 | E3: 준공일 | F3: 잔여일수 | G3: 총계약일수 | H3: 중복금액 (백만원)
A4: 1 | B4: 이호-양곡 도로건설공사 환경영향평가용역 | C4: 538.05 | D4: 2015-02-26 | E4: 2017-02-14 | F4: =IF(E4-H1+1>365,365,E4-H1+1) -> 198 | G4: =E4-D4+1 -> 720 | H4: =C4*(F4/G4)/10 -> 14.796375
A5: 2 | B5: 영동고속도로(안산-북수원) 확장사업 전략 및 환경영향평가 용역 | C5: 734.8 | D5: 2015-10-06 | E5: 2017-10-24 | F5: =IF(E5-H1+1>365,365,E5-H1+1) -> 365 | G5: 750 | H5: 35.76026667
A6: 계 | B6: 2건 | H6: =SUM(H4:H5) -> 50.55664167

Sheet 이용직
B1: 대기책임기술자_이용직 | G1: 공고일 | H1: 2016-08-01
A3: NO | B3: 용역명 | C3: 총사업금액 (백만원) | D3: 착수일 | E3: 준공일 | F3: 잔여일수 | G3: 총계약일수 | H3: 중복금액 (백만원)
A4: 1 | B4: 청평도시계획도로(중로1-4호선)개설공사 소규모환경영향평가 용역 | C4: 18.8 | D4: 2016-03-10 | E4: 2016-08-06 | F4: =IF(E4-H1+1>365,365,E4-H1+1) -> 6 | G4: =E4-D4+1 -> 150 | H4: =C4*(F4/G4)/10 -> 0.0752
A5: 계 | B5: 1건 | H5: =SUM(H4:H4) -> 0.0752

Sheet 조현익
B1: 소음책임기술자_조현익 | G1: 공고일 | H1: 2016-08-01
A3: NO | B3: 용역명 | C3: 총사업금액 (백만원) | D3: 착수일 | E3: 준공일 | F3: 잔여일수 | G3: 총계약일수 | H3: 중복금액 (백만원)
A4: 1 | B4: "해당사항 없음"
A5: 계 | B5: 0건 | H5: =SUM(H4:H4) -> 0

Sheet 이선수
B1: 교통책임기술자_이선수 | G1: 공고일 | H1: 2016-08-01
A3: NO | B3: 용역명 | C3: 총사업금액 (백만원) | D3: 착수일 | E3: 준공일 | F3: 잔여일수 | G3: 총계약일수 | H3: 중복금액 (백만원)
A4: 1 | B4: 계룡시 국도대체우회도로(연산-두마) 건설공사 교통영향분석개선대책 수립용역 | C4: 137.108 | D4: 2015-08-06 | E4: 2017-07-25 | F4: =IF(E4-H1>365,365,E4-H1) -> 358 | G4: =E4-D4+1 -> 720 | H4: =C4*(F4/G4)/10 -> 6.817314444
A5: 2 | B5: 조리-파평 도로건설공사 교통영향분석.개선대책 수립용역 | C5: 167.958 | D5: 2015-11-30 | E5: 2017-01-22 | F5: =IF(E5-H1>365,365,E5-H1) -> 174 | G5: =E5-D5+1 -> 420 | H5: =C5*(F5/G5)/10 -> 6.95826
A6: 계 | B6: 2건 | H6: =SUM(H4:H5) -> 13.77557444

Sheet 한기정
B1: 자연환경참여기술자_한기정 | G1: 공고일 | H1: 2016-08-01
A3: NO | B3: 용역명 | C3: 총사업금액 (백만원) | D3: 착수일 | E3: 준공일 | F3: 잔여일수 | G3: 총계약일수 | H3: 중복금액 (백만원)
A4: 1 | B4: MTB체험단지 및 놀자숲 전략 및 소규모환경영향평가 용역 | C4: 151.963 | D4: 2016-05-24 | E4: 2017-01-18 | F4: =IF(E4-H1>365,365,E4-H1) -> 170 | G4: =E4-D4+1 -> 240 | H4: =C4*(F4/G4)/10 -> 10.76404583
A5: 계 | B5: 1건 | H5: =SUM(H4:H4) -> 10.76404583

Sheet 업무여유도_자연환경 책임(김범석)
A2: - 업무여유도
A3: ( 참여분야 : 수질관리분야 책임평가자, 김범석)
A4: (여유도 산정 기준일 : | C4: 2016-08-01 | D4: )
A5: No. | B5: 용역명 | C5: 총사업금액 (백만원) | D5: 착수일 | E5: 준공일 | F5: 잔여일수 | G5: 총계약일수 | H5: 중복금액 (백만원)
A6: 1 | B6: 과천주암 기업형 임대주택 공급촉진지구 환경영향평가용역 | C6: 398 | D6: 2016-06-20 | E6: 2017-12-19 | F6: =E6-$C$4+1 -> 506 | G6: =E6-D6+1 -> 548 | H6: 27
A7: 2 | B7: 남구 도시첨단산업단지(지방지정) 조성사업 환경영향평가등 용역 | C7: 447 | D7: 2016-06-01 | E7: 2018-05-31 | F7: =E7-$C$4+1 -> 669 | G7: =E7-D7+1 -> 730 | H7: 23
A8: 3 | B8: 충청권 광역철도(계룡~신탄진) 건설사업 전략환경영향평가 | C8: 105 | D8: 2016-03-29 | E8: 2016-12-23 | F8: =E8-$C$4+1 -> 145 | G8: =E8-D8+1 -> 270 | H8: 7
B9: 계 | H9: =SUM(H6:H8) -> 57

Sheet 업무여유도_자연환경 책임(김성종)
A2: - 업무여유도
A3: ( 참여분야 : 자연환경분야 책임평가자, 김성종)
A4: (여유도 산정 기준일 : | C4: 2016-08-01 | D4: )
A5: No. | B5: 용역명 | C5: 총사업금액 (백만원) | D5: 착수일 | E5: 준공일 | F5: 잔여일수 | G5: 총계약일수 | H5: 중복금액 (백만원)
A6: 1 | B6: 과천주암 기업형 임대주택 공급촉진지구 환경영향평가용역 | C6: 398 | D6: 2016-06-20 | E6: 2017-12-19 | F6: =E6-$C$4+1 -> 506 | G6: =E6-D6+1 -> 548 | H6: 27
A7: 2 | B7: 남구 도시첨단산업단지(지방지정) 조성사업 환경영향평가등 용역 | C7: 447 | D7: 2016-06-01 | E7: 2018-05-31 | F7: =E7-$C$4+1 -> 669 | G7: =E7-D7+1 -> 730 | H7: 23
A8: 3 | B8: 충청권 광역철도(계룡~신탄진) 건설사업 전략환경영향평가 | C8: 105 | D8: 2016-03-29 | E8: 2016-12-23 | F8: =E8-$C$4+1 -> 145 | G8: =E8-D8+1 -> 270 | H8: 7
B9: 계 | H9: =SUM(H6:H8) -> 57

Sheet 업무여유도_수질관리 참여(오태영)
A2: - 업무여유도
A3: ( 참여분야 : 수질관리분야 참여평가자, 오태영)
A4: (여유도 산정 기준일 : | C4: 2016-08-01 | D4: )
A5: No. | B5: 용역명 | C5: 총사업금액 (백만원) | D5: 착수일 | E5: 준공일 | F5: 잔여일수 | G5: 총계약일수 | H5: 중복금액 (백만원)
A6: 1 | B6: 과천주암 기업형 임대주택 공급촉진지구 환경영향평가용역 | C6: 398 | D6: 2016-06-20 | E6: 2017-12-19 | F6: =E6-$C$4+1 -> 506 | G6: =E6-D6+1 -> 548 | H6: 27
A7: 2 | B7: 충청권 광역철도(계룡~신탄진) 건설사업 전략환경영향평가 | C7: 105 | D7: 2016-03-29 | E7: 2016-12-23 | F7: =E7-$C$4+1 -> 145 | G7: =E7-D7+1 -> 270 | H7: 7
A8: 3 | B8: 과천복합문화관광단지 전략환경영향평가 용역 | C8: 19 | D8: 2015-04-22 | E8: 2016-04-21 | F8: 45 | G8: =E8-D8+1 -> 366 | H8: 0
E9: (2016.03.08 과업중지)
B10: 계 | H10: =SUM(H6:H8) -> 34

Sheet 업무여유도_교통 참여(서준원)
A2: - 업무여유도
A3: ( 참여분야 : 교통분야 참여평가자, 서준원)
A4: (여유도 산정 기준일 : | C4: 2016-08-01 | D4: )
A5: No. | B5: 용역명 | C5: 총사업금액 (백만원) | D5: 착수일 | E5: 준공일 | F5: 잔여일수 | G5: 총계약일수 | H5: 중복금액 (백만원)
A6: 1 | B6: 장항선 개량 2단계 교통영향분석 개선대책수립 용역 | C6: 162 | D6: 2012-12-13 | E6: 2016-12-15 | F6: =E6-$C$4+1 -> 137 | G6: =E6-D6+1 -> 1464 | H6: 1.9
B7: 계 | H7: =SUM(H6:H6) -> 1.9

Sheet 동일
A1: - 업무여유도
A2: (참여분야 : 폐기물처리분야책임기술자, 김무학)
A3: (여유도 산정 기준일 : 2016. 08. 01.)
H4: 2016-08-01
A5: NO | B5: 용역명 | C5: 총사업금액 (백만원) | D5: 착수일 | E5: 준공일 | F5: 잔여일수 | G5: 총계약 일수 | H5: 중복금액 (백만원)
A6: 1 | B6: 당진~서산 도로건설공사 환경영향평가용역 (과업중지:2016.04.29) | C6: 804 | D6: 2014-07-21 | E6: 2016-08-12 | F6: =(E6-$H$4)+1 -> 12 | G6: =E6-D6+1 -> 754 | H6: 0
A7: 2 | B7: 청양~신풍 도로건설공사 환경영향평가용역 | C7: 401 | D7: 2015-02-26 | E7: 2017-06-18 | F7: =(E7-$H$4)+1 -> 322 | G7: =E7-D7+1 -> 844 | H7: =(C7*(F7/G7)/10) -> 15.29881517
A8: 3 | B8: 광주역세권 도시개발사업 환경영향평가용역 | C8: 300 | D8: 2016-04-19 | E8: 2017-06-18 | F8: =(E8-$H$4)+1 -> 322 | G8: =E8-D8+1 -> 426 | H8: =(C8*(F8/G8)/10) -> 22.67605634
A9: 계 | B9: 3건 | F9: =SUM(F6:F8) -> 656 | H9: =SUM(H6:H8) -> 37.9748715
A11: - 업무여유도
A12: (참여분야 : 대기관리분야참여기술자, 황윤성)
A13: (여유도 산정 기준일 : 2016. 08. 01.)
A15: NO | B15: 용역명 | C15: 총사업금액 (백만원) | D15: 착수일 | E15: 준공일 | F15: 잔여일수 | G15: 총계약 일수 | H15: 중복금액 (백만원)
A16: 1 | B16: 광주역세권 도시개발사업 환경영향평가용역 | C16: 300 | D16: 2016-04-19 | E16: 2017-06-18 | F16: =(E16-$H$4)+1 -> 322 | G16: =E16-D16+1 -> 426 | H16: =(C16*(F16/G16)/10) -> 22.67605634
A17: 계 | B17: 1건 | F17: =SUM(F16) -> 322 | H17: =SUM(H16) -> 22.67605634
A19: - 업무여유도
A20: (참여분야 : 폐기물처리분야참여기술자, 김남경)
A21: (여유도 산정 기준일 : 2016. 08. 01.)
A23: NO | B23: 용역명 | C23: 총사업금액 (백만원) | D23: 착수일 | E23: 준공일 | F23: 잔여일수 | G23: 총계약 일수 | H23: 중복금액 (백만원)
B24: - 해당사항없음 -
A25: 계 | B25: -건 | F25: =SUM(F24:F24) -> 0 | H25: =SUM(H24:H24) -> 0
A27: - 업무여유도
A28: (참여분야 : 소음진동분야참여기술자, 석현진)
A29: (여유도 산정 기준일 : 2016. 08. 01.)
A31: NO | B31: 용역명 | C31: 총사업금액 (백만원) | D31: 착수일 | E31: 준공일 | F31: 잔여일수 | G31: 총계약 일수 | H31: 중복금액 (백만원)
A32: 1 | B32: 광주역세권 도시개발사업 환경영향평가용역 | C32: 300 | D32: 2016-04-19 | E32: 2017-06-18 | F32: =(E32-$H$4)+1 -> 322 | G32: =E32-D32+1 -> 426 | H32: =(C32*(F32/G32)/10) -> 22.67605634
A33: 계 | B33: 1건 | F33: =SUM(F32) -> 322 | H33: =SUM(H32) -> 22.67605634
